[Event "32nd Panamerican Youth 2022"]
[Site "Montevideo"]
[Date "2022.07.01"]
[Round "8.31"]
[White "Matus, Nastassja"]
[Black "Castano, Saray"]
[Result "1-0"]
[ECO "D74"]
[WhiteElo "1918"]
[BlackElo "1721"]
[Annotator "RC"]
[PlyCount "77"]
[EventDate "2022.06.26"]
[EventType "swiss"]
[EventCountry "URU"]
[SourceTitle "playchess.com"]
[Source "ChessBase"]
[SourceQuality "1"]
[TimeControl "5400+30"]

1. d4 {[%emt 0:00:03]} Nf6 {[%emt 0:00:22]} 2. c4 {[%emt 0:00:08]} g6 {[%emt 0:00:31]} 3. g3 {[%emt 0:00:06]} Bg7 {[%emt 0:00:33]} 4. Bg2 {[%emt 0:00:09]} d5 {[%emt 0:00:28]} 5. cxd5 {[%emt 0:01:00]} Nxd5 {[%emt 0:00:26]} 6. Nf3 {[%emt 0:00:40]} O-O {[%emt 0:01:37]} 7. O-O {[%emt 0:00:40]} c6 {[%emt 0:01:56]} 8. Nc3 {[%emt 0:11:13]} Nb6 {[%emt 0:03:22]} 9. h3 {[%emt 0:04:49]} N8d7 {[%emt 0:05:35]} 10. e4 {[%emt 0:04:03]} e5 {[%emt 0:04:54]} 11. Bg5 {[%emt 0:08:43]} f6 {[%emt 0:07:42]} 12. Be3 {[%emt 0:02:55]} exd4 {[%emt 0:01:34]} 13. Nxd4 {[%emt 0:04:53]} Ne5 {[%emt 0:09:57]} 14. b3 {[%emt 0:05:49]} Qe7 {[%emt 0:09:45]} 15. f4 {[%emt 0:05:44]} Nf7 {[%emt 0:03:29]} 16. Qe2 {[%emt 0:04:17]} Re8 {[%emt 0:03:17]} 17. Bf2 {[%emt 0:04:10]} Bd7 {[%emt 0:06:31]} 18. Rfd1 {[%emt 0:03:36]} Rad8 {[%emt 0:01:04]} 19. Rac1 {[%emt 0:03:15]} Bc8 {[%emt 0:03:57]} 20. Nc2 {[%emt 0:06:15]} Rxd1+ {[%emt 0:06:29]} 21. Rxd1 {[%emt 0:00:21]} Qc7 {[%emt 0:02:39]} 22. Nb4 {[%emt 0:04:32]} Bf8 {[%emt 0:07:54]} 23. Nd3 {[%emt 0:02:07]} Nd7 {[%emt 0:02:13]} 24. Qc2 {[%emt 0:03:38]} Qb8 {[%emt 0:03:51]} 25. Na4 {[%emt 0:03:33]} Nd6 {[%emt 0:06:19]} 26. Re1 {[%emt 0:01:11]} b5 {[%emt 0:02:00]} 27. Nac5 {[%emt 0:03:06]} Nxc5 {[%emt 0:01:32]} 28. Bxc5 {[%emt 0:01:08]} Nb7 {[%emt 0:02:15]} 29. Bxf8 {[%emt 0:01:06]} Rxf8 {[%emt 0:00:29]} 30. Qxc6 {[%emt 0:00:28]} a6 {[%emt 0:01:49]} 31. Kh2 {[%emt 0:04:53]} Qa7 {[%emt 0:00:52]} 32. e5 {[%emt 0:01:09]} Qd4 {[%emt 0:00:33]} 33. Qd5+ {[%emt 0:00:58]} Qxd5 {[%emt 0:00:08]} 34. Bxd5+ {[%emt 0:00:05]} Kg7 {[%emt 0:00:14]} 35. Rc1 {[%emt 0:03:03]} Bf5 {[%emt 0:01:08]} 36. Rc7+ {[%emt 0:00:43]} Kh8 {[%emt 0:00:15]} 37. Bxb7 {[%emt 0:01:03]} Bxd3 {[%emt 0:00:07]} 38. e6 {[%emt 0:00:25]} Re8 {[%emt 0:00:33]} 39. e7 {[%emt 0:00:16]} 1-0

[Event "32nd Panamerican Youth 2022"]
[Site "Montevideo"]
[Date "2022.07.01"]
[Round "8.32"]
[White "Munoz Orozco, Shirley Grace"]
[Black "Bosco, Giuliana"]
[Result "0-1"]
[ECO "C16"]
[WhiteElo "1288"]
[BlackElo "1867"]
[Annotator "NA RC"]
[PlyCount "62"]
[EventDate "2022.06.26"]
[EventType "swiss"]
[EventCountry "URU"]
[SourceTitle "playchess.com"]
[Source "ChessBase"]
[SourceQuality "1"]
[TimeControl "5400+30"]

{[%evp 23,62,-8,32767,32767,32767,-47,-29,-101,32767,32767,32767,32767,-95,-124,-124,-124,32767,-150,-101,-118,-89,-106,-124,32767,-98,-104,32767,32767,-255,-349,-314,-349,-305,-582,32767,-631,32767,32767,-1370,32767,-1094]} 1. e4 {[%emt 0:00:06]} e6 {[%emt 0:00:11]} 2. d4 {[%emt 0:00:09]} d5 {[%emt 0:00:19]} 3. Nc3 {[%emt 0:00:29]} Bb4 {[%emt 0:00:23]} 4. e5 {[%emt 0:01:12]} Qd7 {[%emt 0:00:57]} 5. a3 {[%emt 0:00:34]} Bxc3+ {[%emt 0:00:14]} 6. bxc3 {[%emt 0:00:16]} b6 {[%emt 0:00:10]} 7. Bd2 {[%emt 0:01:06]} Ba6 {[%emt 0:02:03]} 8. Bxa6 {[%emt 0:03:19]} Nxa6 {[%emt 0:00:11]} 9. Qg4 {[%emt 0:01:05]} f5 {[%emt 0:06:00]} 10. Qg3 {[%emt 0:05:13]} Nb8 {[%emt 0:09:48]} 11. Ne2 {[%emt 0:03:32]} Nc6 {[%emt 0:05:16]} 12. h4 {[%emt 0:10:06]} O-O-O {[%emt 0:18:49]} 13. O-O {[%emt 0:02:26]} Qf7 {[%emt 0:04:08]} 14. Nf4 {[%emt 0:03:40]} ({White should play} 14. c4 $11) 14... Nge7 {[%emt 0:02:05]} 15. Nh3 {[%emt 0:16:05]} (15. a4 $15) 15... h6 {[%emt 0:12:30]} 16. f4 {[%emt 0:08:53]} Rdg8 {[%emt 0:02:15]} 17. Rf3 {[%emt 0:04:47]} Qh5 {[%emt 0:04:49]} 18. Kf1 {[%emt 0:20:56]} Na5 {[%emt 0:04:20]} 19. Qf2 {[%emt 0:00:30]} Nc4 {[%emt 0:00:30]} 20. Ke2 {[%emt 0:04:00]} Qe8 {[%emt 0:02:25]} (20... Qg4 $142 21. Be1 Qh5) 21. a4 {[%emt 0:03:13]} Nb2 {[%emt 0:03:18]} 22. a5 {[%emt 0:04:47]} Qb5+ {[%emt 0:00:48]} 23. Ke1 {[%emt 0:00:44]} Nc4 {[%emt 0:01:30]} 24. axb6 {[%emt 0:01:32]} axb6 {[%emt 0:00:58]} 25. Bc1 {[%emt 0:00:12]} Kb7 {[%emt 0:01:56]} 26. Qe2 {[%emt 0:01:48]} Ra8 {[%emt 0:00:35]} 27. Rxa8 $19 {[%emt 0:00:55]} Rxa8 {[%emt 0:00:01]} 28. Kf2 $2 {[%emt 0:00:41]} (28. Nf2 {keeps fighting.}) 28... Qb1 {[%emt 0:00:53]} 29. Be3 {[%emt 0:00:45]} Ra2 {[%emt 0:00:09]} 30. Kg3 {[%emt 0:00:36]} Rxc2 {[%emt 0:00:17]} 31. Rf1 {[%emt 0:00:43]} Rxe2 {[%emt 0:00:40]} 0-1

[Event "32nd Panamerican Youth 2022"]
[Site "Montevideo"]
[Date "2022.07.02"]
[Round "9.2"]
[White "Ling, Chenxuan"]
[Black "Silva, Juliana Figueira The"]
[Result "1-0"]
[ECO "B21"]
[WhiteElo "1628"]
[BlackElo "1310"]
[Annotator "NA RC"]
[PlyCount "60"]
[EventDate "2022.06.26"]
[EventType "swiss"]
[EventCountry "URU"]
[SourceTitle "playchess.com"]
[Source "ChessBase"]
[SourceQuality "1"]
[TimeControl "5400+30"]

1. e4 c5 {[%emt 0:00:17]} 2. f4 {[%emt 0:00:17]} Nc6 3. Nf3 {[%emt 0:00:09]} g6 {[%emt 0:00:22]} 4. Bc4 {[%emt 0:00:16]} Bg7 {[%emt 0:00:23]} 5. Nc3 {[%emt 0:00:15]} d6 {[%emt 0:00:07]} 6. d3 {[%emt 0:00:13]} Nf6 {[%emt 0:00:14]} 7. h3 {[%emt 0:00:08]} O-O {[%emt 0:00:08]} 8. Be3 {[%emt 0:00:22]} a6 {[%emt 0:00:12]} 9. a3 {[%emt 0:00:15]} b5 {[%emt 0:00:51]} 10. Bd5 {[%emt 0:00:15]} Bb7 {[%emt 0:01:44]} 11. Qd2 {[%emt 0:00:14]} Nxd5 {[%emt 0:01:39]} 12. exd5 {[%emt 0:01:20]} Nd4 {[%emt 0:01:07]} 13. O-O-O {[%emt 0:01:48]} Nxf3 {[%emt 0:00:18]} 14. gxf3 {[%emt 0:00:08]} b4 {[%emt 0:00:07]} 15. axb4 {[%emt 0:00:37]} cxb4 {[%emt 0:00:09]} 16. Na4 {[%emt 0:00:25]} Qa5 {[%emt 0:01:45]} 17. b3 {[%emt 0:00:40]} Bxd5 {[%emt 0:00:17]} 18. Bb6 {[%emt 0:00:16]} Qb5 {[%emt 0:00:07]} 19. Rde1 {[%emt 0:00:19]} Rfc8 {[%emt 0:01:18]} 20. Kb1 {[%emt 0:00:28]} Rab8 {[%emt 0:00:24]} 21. Rxe7 {[%emt 0:00:37]} Rxb6 {[%emt 0:00:17]} 22. Nxb6 {[%emt 0:00:06]} Qxb6 {[%emt 0:00:04]} 23. f5 {[%emt 0:00:50]} Qd4 {[%emt 0:00:10]} 24. c3 {[%emt 0:03:13]} Rxc3 {[%emt 0:00:04]} 25. Re8+ {[%emt 0:02:59]} Bf8 {[%emt 0:00:04]} 26. Qh6 {[%emt 0:00:27]} Rxb3+ {[%emt 0:04:29]} 27. Kc2 {[%emt 0:00:11]} Rb2+ {[%emt 0:01:06]} 28. Kc1 {[%emt 0:00:49]} Qc3+ {[%emt 0:00:07]} 29. Kd1 {[%emt 0:00:11]} Bxf3+ {[%emt 0:00:04]} 30. Re2 {[%emt 0:00:43]} Bxe2# {[%emt 0:00:00]} 1-0

[Event "32nd Panamerican Youth 2022"]
[Site "Montevideo"]
[Date "2022.07.02"]
[Round "9.3"]
[White "Li, Iris"]
[Black "Lugo Martinez, Jimena Sofia"]
[Result "1-0"]
[ECO "C55"]
[WhiteElo "1635"]
[BlackElo "1228"]
[Annotator "NA RC"]
[PlyCount "59"]
[EventDate "2022.06.26"]
[EventType "swiss"]
[EventCountry "URU"]
[SourceTitle "playchess.com"]
[Source "ChessBase"]
[SourceQuality "1"]
[TimeControl "5400+30"]

1. e4 {[%emt 0:00:01]} e5 {[%emt 0:00:06]} 2. Nf3 {[%emt 0:00:04]} Nc6 {[%emt 0:00:12]} 3. Bc4 {[%emt 0:00:05]} Nf6 {[%emt 0:00:18]} 4. d3 {[%emt 0:00:04]} h6 {[%emt 0:00:16]} 5. c3 {[%emt 0:01:43]} Bc5 {[%emt 0:00:34]} 6. Nbd2 {[%emt 0:02:30]} O-O {[%emt 0:00:38]} 7. h3 {[%emt 0:00:20]} Re8 {[%emt 0:01:56]} 8. O-O {[%emt 0:05:50]} d6 {[%emt 0:00:11]} 9. b4 {[%emt 0:00:10]} Bb6 {[%emt 0:00:19]} 10. a4 {[%emt 0:00:15]} a6 {[%emt 0:00:07]} 11. Re1 {[%emt 0:01:19]} Be6 {[%emt 0:02:16]} 12. Bxe6 {[%emt 0:11:39]} fxe6 {[%emt 0:00:18]} 13. Nc4 {[%emt 0:00:28]} Ba7 {[%emt 0:00:41]} 14. Be3 {[%emt 0:02:30]} Nd7 {[%emt 0:04:15]} 15. Bxa7 {[%emt 0:00:45]} Rxa7 {[%emt 0:00:14]} 16. Ne3 {[%emt 0:05:01]} Nf6 {[%emt 0:01:59]} 17. Qb3 {[%emt 0:09:41]} d5 {[%emt 0:07:41]} 18. exd5 {[%emt 0:02:42]} exd5 {[%emt 0:00:37]} 19. b5 {[%emt 0:03:41]} Na5 {[%emt 0:03:50]} 20. Qb4 {[%emt 0:00:55]} b6 {[%emt 0:00:13]} 21. Nc2 {[%emt 0:06:04]} c5 {[%emt 0:04:08]} 22. bxc6 {[%emt 0:00:34]} Nxc6 {[%emt 0:00:10]} 23. Qb3 {[%emt 0:01:58]} Rae7 {[%emt 0:04:14]} 24. Rab1 {[%emt 0:02:54]} Rb7 {[%emt 0:02:35]} 25. c4 {[%emt 0:07:21]} d4 {[%emt 0:00:53]} 26. c5+ {[%emt 0:00:21]} Kh8 {[%emt 0:01:00]} 27. cxb6 {[%emt 0:00:57]} Nd5 {[%emt 0:00:53]} 28. Qc4 {[%emt 0:03:39]} Nb8 {[%emt 0:06:08]} 29. Nxe5 {[%emt 0:01:37]} Rf8 {[%emt 0:01:24]} 30. Ng6+ {[%emt 0:00:15]} 1-0

[Event "32nd Panamerican Youth 2022"]
[Site "Montevideo"]
[Date "2022.07.02"]
[Round "9.4"]
[White "Yue, Tariq"]
[Black "Martinez Flores, Matias"]
[Result "1-0"]
[ECO "D46"]
[WhiteElo "1397"]
[BlackElo "1680"]
[Annotator "NA RC"]
[PlyCount "127"]
[EventDate "2022.06.26"]
[EventType "swiss"]
[EventCountry "URU"]
[SourceTitle "playchess.com"]
[Source "ChessBase"]
[SourceQuality "1"]
[TimeControl "5400+30"]

1. Nf3 {[%emt 0:00:03]} d5 {[%emt 0:00:07]} 2. d4 {[%emt 0:00:12]} Nf6 {[%emt 0:00:14]} 3. c4 {[%emt 0:00:57]} e6 {[%emt 0:00:09]} 4. Nc3 {[%emt 0:00:31]} c6 {[%emt 0:01:00]} 5. e3 {[%emt 0:06:25]} Be7 {[%emt 0:01:31]} 6. Bd3 {[%emt 0:01:08]} Nbd7 {[%emt 0:00:51]} 7. O-O {[%emt 0:01:40]} O-O {[%emt 0:00:18]} 8. e4 {[%emt 0:05:01]} dxe4 {[%emt 0:00:23]} 9. Nxe4 {[%emt 0:00:15]} Nxe4 {[%emt 0:00:07]} 10. Bxe4 {[%emt 0:00:05]} Nf6 {[%emt 0:00:07]} 11. Bc2 {[%emt 0:00:23]} b6 {[%emt 0:00:52]} 12. Be3 {[%emt 0:03:09]} Bb7 {[%emt 0:01:36]} 13. Qe2 {[%emt 0:01:48]} Qc7 {[%emt 0:01:32]} 14. Rac1 {[%emt 0:03:28]} Ng4 {[%emt 0:03:34]} 15. h3 {[%emt 0:04:10]} Nxe3 {[%emt 0:00:42]} 16. fxe3 {[%emt 0:00:08]} c5 {[%emt 0:00:07]} 17. Qd3 {[%emt 0:06:32]} g6 {[%emt 0:01:03]} 18. Ne5 {[%emt 0:01:21]} Rad8 {[%emt 0:01:46]} 19. Qc3 {[%emt 0:02:24]} f5 {[%emt 0:03:42]} 20. Rcd1 {[%emt 0:09:05]} Bf6 {[%emt 0:02:39]} 21. a4 {[%emt 0:04:30]} Bxe5 {[%emt 0:00:35]} 22. dxe5 {[%emt 0:00:11]} a5 {[%emt 0:00:52]} 23. Rd3 {[%emt 0:04:41]} Rxd3 {[%emt 0:00:36]} 24. Bxd3 {[%emt 0:00:08]} Qc6 {[%emt 0:00:20]} 25. Qc2 {[%emt 0:02:49]} Rd8 {[%emt 0:00:30]} 26. Rf2 {[%emt 0:02:38]} Qd7 {[%emt 0:02:09]} 27. Bf1 {[%emt 0:00:57]} Qd1 {[%emt 0:01:17]} 28. Qxd1 {[%emt 0:03:15]} Rxd1 {[%emt 0:00:06]} 29. Rc2 {[%emt 0:02:08]} Ra1 {[%emt 0:00:58]} 30. b3 {[%emt 0:02:13]} Rb1 {[%emt 0:00:19]} 31. Rd2 {[%emt 0:01:27]} Rxb3 {[%emt 0:01:04]} 32. Rd8+ {[%emt 0:00:06]} Kg7 {[%emt 0:00:18]} 33. Rd7+ {[%emt 0:00:06]} Kh6 {[%emt 0:00:04]} 34. Rxb7 {[%emt 0:00:07]} Rb4 {[%emt 0:00:58]} 35. Kf2 {[%emt 0:01:29]} Rxa4 {[%emt 0:00:37]} 36. Rxb6 {[%emt 0:00:08]} Ra1 {[%emt 0:00:17]} 37. Rb5 {[%emt 0:01:09]} a4 {[%emt 0:00:13]} 38. Rxc5 {[%emt 0:00:10]} a3 {[%emt 0:00:03]} 39. Ra5 {[%emt 0:00:13]} a2 {[%emt 0:00:18]} 40. c5 {[%emt 0:00:36]} Rc1 {[%emt 0:00:16]} 41. Rxa2 {[%emt 0:00:08]} Rxc5 {[%emt 0:00:04]} 42. Ra6 {[%emt 0:00:12]} Rxe5 {[%emt 0:00:18]} 43. Bc4 {[%emt 0:00:07]} Kg5 {[%emt 0:00:14]} 44. Rxe6 {[%emt 0:00:11]} Rc5 {[%emt 0:00:06]} 45. Be2 {[%emt 0:00:21]} Rc2 {[%emt 0:01:11]} 46. Kf3 {[%emt 0:00:33]} Rc3 {[%emt 0:02:12]} 47. g3 {[%emt 0:01:46]} h5 {[%emt 0:00:59]} 48. h4+ {[%emt 0:00:14]} Kh6 {[%emt 0:00:04]} 49. Bb5 {[%emt 0:01:01]} Rc7 {[%emt 0:01:00]} 50. Be8 {[%emt 0:00:33]} Rg7 {[%emt 0:00:06]} 51. Kf4 {[%emt 0:00:17]} Rg8 {[%emt 0:00:04]} 52. Bf7 {[%emt 0:00:07]} Rg7 {[%emt 0:00:12]} 53. Rf6 {[%emt 0:00:14]} Kh7 {[%emt 0:00:41]} 54. Kg5 {[%emt 0:00:08]} Kh8 {[%emt 0:00:23]} 55. Bxg6 {[%emt 0:00:29]} f4 {[%emt 0:00:33]} 56. Rf8+ {[%emt 0:00:11]} Rg8 {[%emt 0:00:04]} 57. Rxg8+ {[%emt 0:00:08]} Kxg8 {[%emt 0:00:04]} 58. gxf4 {[%emt 0:00:11]} Kg7 {[%emt 0:00:05]} 59. e4 {[%emt 0:00:07]} Kg8 {[%emt 0:00:04]} 60. e5 {[%emt 0:00:06]} Kg7 {[%emt 0:00:05]} 61. e6 {[%emt 0:00:24]} Kf8 {[%emt 0:00:08]} 62. Kf6 {[%emt 0:00:07]} Kg8 {[%emt 0:00:03]} 63. e7 {[%emt 0:00:06]} Kh8 64. e8=R# 1-0

[Event "32nd Panamerican Youth 2022"]
[Site "Montevideo"]
[Date "2022.07.02"]
[Round "9.5"]
[White "Mollo Figueroa, Nicole"]
[Black "Vidyarthi, Omya"]
[Result "0-1"]
[ECO "C54"]
[WhiteElo "1362"]
[BlackElo "1780"]
[Annotator "NA RC"]
[PlyCount "108"]
[EventDate "2022.06.26"]
[EventType "swiss"]
[EventCountry "URU"]
[SourceTitle "playchess.com"]
[Source "ChessBase"]
[SourceQuality "1"]
[TimeControl "5400+30"]

1. e4 {[%emt 0:13:34]} e5 {[%emt 0:00:06]} 2. Nf3 {[%emt 0:00:35]} Nc6 {[%emt 0:00:10]} 3. Bc4 {[%emt 0:01:40]} Bc5 {[%emt 0:00:05]} 4. c3 {[%emt 0:00:18]} Nf6 {[%emt 0:00:12]} 5. d3 {[%emt 0:01:00]} d6 {[%emt 0:00:53]} 6. O-O {[%emt 0:01:06]} O-O {[%emt 0:01:50]} 7. Bb3 {[%emt 0:02:33]} h6 {[%emt 0:04:05]} 8. h3 {[%emt 0:04:40]} Bb6 {[%emt 0:00:29]} 9. Nbd2 {[%emt 0:02:06]} Ne7 {[%emt 0:01:03]} 10. Re1 {[%emt 0:02:17]} Ng6 {[%emt 0:01:04]} 11. Nf1 {[%emt 0:00:13]} Be6 {[%emt 0:01:59]} 12. Be3 {[%emt 0:04:43]} Re8 {[%emt 0:01:21]} 13. Ng3 {[%emt 0:01:21]} d5 {[%emt 0:03:49]} 14. Qc2 {[%emt 0:03:49]} Bxe3 {[%emt 0:03:49]} 15. Rxe3 {[%emt 0:00:21]} c5 {[%emt 0:03:04]} 16. c4 {[%emt 0:03:45]} d4 {[%emt 0:01:52]} 17. Ree1 {[%emt 0:00:23]} Nh7 {[%emt 0:04:15]} 18. Ba4 Re7 {[%emt 0:02:17]} 19. a3 {[%emt 0:03:32]} Rc7 {[%emt 0:02:45]} 20. Qd2 {[%emt 0:02:07]} Qf6 {[%emt 0:06:25]} 21. Nh5 {[%emt 0:01:44]} Qe7 {[%emt 0:00:14]} 22. Ng3 {[%emt 0:00:56]} b6 {[%emt 0:03:12]} 23. Nf5 {[%emt 0:05:33]} Qf6 {[%emt 0:00:44]} 24. g4 {[%emt 0:01:06]} Nf4 {[%emt 0:00:40]} 25. Kh2 {[%emt 0:01:16]} Ng5 {[%emt 0:01:09]} 26. Nxg5 {[%emt 0:01:17]} hxg5 {[%emt 0:00:10]} 27. Rg1 {[%emt 0:04:20]} g6 {[%emt 0:01:10]} 28. Nd6 {[%emt 0:00:37]} Qh8 {[%emt 0:00:29]} 29. Rg3 {[%emt 0:01:24]} Bxg4 {[%emt 0:00:26]} 30. Rh1 {[%emt 0:00:43]} f6 {[%emt 0:10:06]} 31. Qxf4 {[%emt 0:04:04]} exf4 {[%emt 0:03:22]} 32. Rxg4 {[%emt 0:00:08]} Rd8 {[%emt 0:00:44]} 33. Ne8 {[%emt 0:00:56]} Re7 {[%emt 0:00:15]} 34. f3 {[%emt 0:00:29]} a6 {[%emt 0:01:35]} 35. Rhg1 {[%emt 0:01:03]} b5 {[%emt 0:03:15]} 36. Nxf6+ {[%emt 0:00:09]} Qxf6 {[%emt 0:00:08]} 37. cxb5 {[%emt 0:00:07]} axb5 {[%emt 0:01:33]} 38. Bxb5 {[%emt 0:00:07]} Rb8 {[%emt 0:00:50]} 39. Bc4+ {[%emt 0:00:07]} Kg7 {[%emt 0:00:12]} 40. b3 {[%emt 0:00:06]} Re5 {[%emt 0:00:19]} 41. a4 {[%emt 0:00:23]} Rh8 {[%emt 0:00:18]} 42. a5 {[%emt 0:00:51]} Ra8 {[%emt 0:02:36]} 43. Ra1 {[%emt 0:00:18]} Re7 {[%emt 0:01:48]} 44. Rg2 {[%emt 0:00:17]} Rea7 {[%emt 0:00:14]} 45. Rga2 {[%emt 0:00:19]} Qd8 {[%emt 0:00:45]} 46. a6 {[%emt 0:00:07]} Qd7 {[%emt 0:00:14]} 47. Kg2 {[%emt 0:00:24]} Rh8 {[%emt 0:00:45]} 48. Rh1 {[%emt 0:00:05]} Qc8 {[%emt 0:01:41]} 49. e5 {[%emt 0:01:18]} Qa8 {[%emt 0:00:38]} 50. Re1 {[%emt 0:00:34]} Rxh3 {[%emt 0:00:48]} 51. Re4 {[%emt 0:01:20]} Qh8 {[%emt 0:00:35]} 52. e6 {[%emt 0:02:34]} Rh2+ {[%emt 0:00:26]} 53. Kg1 {[%emt 0:02:27]} Rh1+ {[%emt 0:00:05]} 54. Kf2 {[%emt 0:02:35]} Qh2# {[%emt 0:00:13]} 0-1

[Event "32nd Panamerican Youth 2022"]
[Site "Montevideo"]
[Date "2022.07.02"]
[Round "9.6"]
[White "Su, Jasmine Zhixin"]
[Black "Silva, Juliana Figueira The"]
[Result "1-0"]
[ECO "B90"]
[WhiteElo "1783"]
[BlackElo "1310"]
[Annotator "NA RC"]
[PlyCount "127"]
[EventDate "2022.06.26"]
[EventType "swiss"]
[EventCountry "URU"]
[SourceTitle "playchess.com"]
[Source "ChessBase"]
[SourceQuality "1"]
[TimeControl "5400+30"]

1. e4 {[%emt 0:00:01]} c5 {[%emt 0:01:39]} 2. Nf3 {[%emt 0:00:02]} d6 {[%emt 0:00:45]} 3. d4 {[%emt 0:00:02]} cxd4 {[%emt 0:01:01]} 4. Nxd4 {[%emt 0:00:01]} Nf6 5. Nc3 a6 {[%emt 0:02:00]} 6. f3 {[%emt 0:00:08]} b5 $14 {[%emt 0:04:47]} 7. Be3 {[%emt 0:00:30]} (7. Nd5 $1 $14) 7... e6 {[%emt 0:11:25]} 8. Qd2 {[%emt 0:01:50]} Be7 {[%emt 0:01:04]} 9. O-O-O {[%emt 0:00:39]} O-O 10. g4 b4 {[%emt 0:04:52]} 11. Nce2 {[%emt 0:02:44]} a5 {[%emt 0:01:58]} 12. Kb1 {[%emt 0:02:20]} Bd7 {[%emt 0:02:41]} 13. h4 {[%emt 0:00:31]} Nc6 {[%emt 0:00:58]} 14. h5 {[%emt 0:02:10]} Kh8 {[%emt 0:06:58]} 15. g5 {[%emt 0:06:10]} Ng8 {[%emt 0:01:09]} 16. Nxc6 {[%emt 0:12:28]} Bxc6 {[%emt 0:00:42]} 17. Nf4 {[%emt 0:05:15]} Qe8 {[%emt 0:03:51]} 18. g6 {[%emt 0:02:25]} Nf6 {[%emt 0:08:14]} 19. gxf7 {[%emt 0:05:16]} Qxf7 {[%emt 0:01:39]} 20. Ng6+ {[%emt 0:02:01]} Kg8 21. Nxe7+ {[%emt 0:02:49]} Qxe7 {[%emt 0:00:29]} 22. Qxd6 {[%emt 0:00:13]} Qe8 {[%emt 0:09:17]} 23. Bc4 {[%emt 0:01:52]} Bd7 {[%emt 0:00:39]} 24. e5 {[%emt 0:02:46]} Nd5 {[%emt 0:00:48]} 25. Rxd5 {[%emt 0:00:08]} exd5 {[%emt 0:00:13]} 26. Bxd5+ {[%emt 0:00:03]} Kh8 {[%emt 0:00:19]} 27. Bxa8 {[%emt 0:00:09]} Qxa8 {[%emt 0:00:19]} 28. Qxd7 {[%emt 0:00:05]} Qxf3 {[%emt 0:00:43]} 29. Rg1 {[%emt 0:01:23]} Rf7 {[%emt 0:00:53]} 30. Qc8+ {[%emt 0:00:57]} Rf8 {[%emt 0:00:08]} 31. Qg4 {[%emt 0:00:11]} Qf7 {[%emt 0:01:22]} 32. e6 {[%emt 0:00:18]} Qf6 {[%emt 0:01:06]} 33. e7 {[%emt 0:00:38]} Qxe7 {[%emt 0:00:12]} 34. Bc5 {[%emt 0:00:09]} Qf7 {[%emt 0:01:05]} 35. Bxf8 {[%emt 0:00:23]} Qxf8 {[%emt 0:00:05]} 36. Rd1 {[%emt 0:00:19]} Qa8 {[%emt 0:00:51]} 37. Qd7 {[%emt 0:00:21]} Qg8 {[%emt 0:01:10]} 38. Qd8 {[%emt 0:00:43]} h6 {[%emt 0:00:17]} 39. Qxg8+ {[%emt 0:00:03]} Kxg8 {[%emt 0:00:08]} 40. Rd5 {[%emt 0:00:02]} Kf7 {[%emt 0:00:12]} 41. Rxa5 {[%emt 0:00:06]} Kf6 {[%emt 0:00:08]} 42. Rb5 {[%emt 0:00:06]} g5 {[%emt 0:00:18]} 43. hxg6 {[%emt 0:00:10]} Kxg6 {[%emt 0:00:04]} 44. Rxb4 {[%emt 0:00:03]} h5 {[%emt 0:00:10]} 45. a4 {[%emt 0:00:02]} Kg5 {[%emt 0:00:00]} 46. Rb5+ {[%emt 0:00:10]} Kg4 {[%emt 0:00:16]} 47. Rxh5 {[%emt 0:00:03]} Kxh5 {[%emt 0:00:19]} 48. a5 {[%emt 0:00:05]} Kg5 {[%emt 0:00:02]} 49. a6 {[%emt 0:00:06]} Kf6 {[%emt 0:00:10]} 50. a7 {[%emt 0:00:06]} Ke7 {[%emt 0:00:01]} 51. a8=Q {[%emt 0:00:15]} Kd7 {[%emt 0:00:05]} 52. Qb7+ {[%emt 0:00:13]} Kd6 {[%emt 0:00:15]} 53. Qc8 {[%emt 0:00:03]} Kd5 {[%emt 0:00:03]} 54. b4 {[%emt 0:00:05]} Kd4 55. b5 Kd5 {[%emt 0:00:33]} 56. b6 {[%emt 0:00:08]} Kd6 {[%emt 0:00:09]} 57. b7 {[%emt 0:00:05]} Kd5 {[%emt 0:00:11]} 58. b8=Q {[%emt 0:00:17]} Kd4 59. Qbc7 {[%emt 0:00:18]} Kd5 {[%emt 0:00:38]} 60. Q7d7+ {[%emt 0:00:09]} Ke4 {[%emt 0:00:11]} 61. Qce8+ {[%emt 0:02:16]} Kf3 {[%emt 0:00:15]} 62. Qdf7+ {[%emt 0:00:08]} Kg4 {[%emt 0:01:58]} 63. Qeg8+ {[%emt 0:00:14]} Kh4 {[%emt 0:00:10]} 64. Qfh7# {[%emt 0:00:30]} 1-0

[Event "32nd Panamerican Youth 2022"]
[Site "Montevideo"]
[Date "2022.07.02"]
[Round "9.7"]
[White "El Hage Serrano, Caely"]
[Black "Luna Monsalve, Sofia"]
[Result "1-0"]
[ECO "C50"]
[WhiteElo "1402"]
[BlackElo "1320"]
[Annotator "NA RC"]
[PlyCount "65"]
[EventDate "2022.06.26"]
[EventType "swiss"]
[EventCountry "URU"]
[SourceTitle "playchess.com"]
[Source "ChessBase"]
[SourceQuality "1"]
[TimeControl "5400+30"]

1. e4 {[%emt 0:00:02]} e5 {[%emt 0:00:29]} 2. Nf3 {[%emt 0:00:15]} Nc6 {[%emt 0:00:17]} 3. Bc4 {[%emt 0:00:06]} Bc5 {[%emt 0:00:52]} 4. O-O {[%emt 0:00:41]} Nf6 {[%emt 0:01:10]} 5. d3 {[%emt 0:00:15]} d6 {[%emt 0:00:35]} 6. c3 {[%emt 0:00:40]} a6 $11 {[%emt 0:00:20]} 7. d4 {[%emt 0:00:47]} exd4 {[%emt 0:02:05]} (7... Bb6 $11) 8. cxd4 {[%emt 0:00:08]} Ba7 {[%emt 0:00:49]} 9. Nc3 {[%emt 0:00:50]} Bg4 {[%emt 0:04:04]} 10. d5 {[%emt 0:04:36]} Bxf3 {[%emt 0:04:13]} 11. Qxf3 {[%emt 0:00:16]} Ne5 {[%emt 0:00:35]} 12. Qe2 {[%emt 0:00:14]} Qe7 {[%emt 0:03:12]} 13. Bb3 {[%emt 0:07:52]} O-O-O {[%emt 0:05:23]} 14. Be3 {[%emt 0:01:19]} Bxe3 {[%emt 0:01:16]} 15. Qxe3 {[%emt 0:00:23]} Kb8 {[%emt 0:02:05]} 16. h3 {[%emt 0:03:13]} Rhg8 {[%emt 0:06:13]} 17. f4 {[%emt 0:00:16]} Ned7 {[%emt 0:05:57]} 18. Bc2 {[%emt 0:03:11]} Nb6 {[%emt 0:03:48]} 19. a4 {[%emt 0:02:40]} Nbxd5 {[%emt 0:02:33]} 20. Nxd5 {[%emt 0:00:55]} Nxd5 {[%emt 0:00:19]} 21. Qd4 {[%emt 0:00:11]} Nf6 {[%emt 0:04:39]} 22. b4 {[%emt 0:01:22]} Nd7 {[%emt 0:05:30]} 23. Rae1 {[%emt 0:08:59]} Qf6 {[%emt 0:05:05]} 24. e5 {[%emt 0:00:21]} dxe5 {[%emt 0:00:40]} 25. fxe5 {[%emt 0:00:08]} Qb6 {[%emt 0:00:57]} 26. Qxb6 {[%emt 0:00:22]} Nxb6 27. Rxf7 {[%emt 0:00:10]} Nd5 {[%emt 0:15:57]} 28. Bxh7 {[%emt 0:00:40]} Rge8 {[%emt 0:02:27]} 29. b5 {[%emt 0:01:20]} axb5 {[%emt 0:00:38]} 30. axb5 {[%emt 0:00:17]} Nc3 {[%emt 0:00:58]} 31. e6 {[%emt 0:00:47]} Nxb5 {[%emt 0:01:17]} 32. e7 {[%emt 0:00:12]} Rc8 {[%emt 0:01:55]} 33. Bf5 {[%emt 0:00:24]} 1-0